bitfinex-derivatives/quotes_BTCF0:USTF0_20250630
["timestamp","ask_amount","ask_price","bid_price","bid_amount"]
[1751291838713,0.1909336,107540.0,107530.0,1.34740408]
[1751291838909,0.1909336,107540.0,107530.0,1.70820408]
[1751291839412,0.1909336,107540.0,107530.0,1.34740408]
[1751291840704,0.5517336,107540.0,107530.0,1.34740408]
[1751291840912,0.1909336,107540.0,107530.0,1.34732408]
[1751291841114,0.1909336,107540.0,107530.0,1.34732384]
[1751291842928,0.1909336,107540.0,107530.0,1.03076029]
[1751291843225,0.1909336,107540.0,107530.0,1.34732384]
[1751291844125,0.005,107540.0,107530.0,1.70812384]
[1751291844317,0.1909332,107540.0,107530.0,1.70812384]
[1751291845811,0.1909332,107540.0,107530.0,1.21056384]
[1751291846016,0.1909332,107540.0,107530.0,1.70804384]
[1751291847724,0.1909332,107540.0,107530.0,1.34724384]
[1751291847925,0.2236332,107540.0,107530.0,1.34724384]
[1751291849627,0.2236332,107540.0,107530.0,0.63464384]
[1751291849828,0.2236332,107540.0,107530.0,1.34720384]
[1751291850020,0.2236332,107540.0,107530.0,1.03064029]
[1751291850221,0.2236332,107540.0,107530.0,1.34720384]
[1751291851028,0.2236332,107540.0,107530.0,1.42110846]
[1751291851419,0.2236332,107540.0,107530.0,1.10454491]
[1751291851829,0.2236332,107540.0,107530.0,1.42110846]
[1751291853928,0.005,107540.0,107530.0,1.78190846]
[1751291854129,0.1909331,107540.0,107530.0,1.78190846]
[1751291857630,0.1909331,107540.0,107530.0,1.43990387]
[1751291858029,0.1909331,107540.0,107530.0,1.80070387]
[1751291859132,0.1909331,107540.0,107530.0,1.22490387]
[1751291859329,0.2211331,107540.0,107530.0,1.43970387]
[1751291859528,0.2512331,107540.0,107530.0,1.09194032]
[1751291859728,0.2512331,107540.0,107530.0,0.66604387]
[1751291859929,0.6120331,107540.0,107530.0,1.06128032]
[1751291860135,0.6425331,107540.0,107530.0,0.96858029]
[1751291860331,0.6425331,107540.0,107530.0,1.06128032]
[1751291861838,0.2817331,107540.0,107530.0,1.37784387]
[1751291862334,0.2817331,107540.0,107530.0,1.37784384]
[1751291862637,0.2512331,107540.0,107530.0,1.37784384]
[1751291863337,0.2512331,107540.0,107530.0,1.73864384]
[1751291863838,0.2512331,107540.0,107530.0,1.31771125]
[1751291864139,0.2512331,107540.0,107530.0,1.34991125]
[1751291865941,0.2512331,107540.0,107530.0,1.71071125]
[1751291866237,0.2512331,107540.0,107530.0,1.34991125]
[1751291866545,0.2512331,107540.0,107530.0,1.71071125]
[1751291866935,0.2512331,107540.0,107530.0,1.38071125]
[1751291867137,0.2512331,107540.0,107530.0,1.74151125]
[1751291868037,0.2512331,107540.0,107530.0,1.38071125]
[1751291868742,0.2512331,107540.0,107530.0,1.74151125]
[1751291870141,0.2512331,107540.0,107530.0,1.38071125]
[1751291871145,0.2512331,107540.0,107530.0,1.25721122]
[1751291871347,0.2512331,107540.0,107530.0,1.61801122]
[1751291871642,0.2512331,107540.0,107530.0,1.25721122]
[1751291872643,0.2512331,107540.0,107530.0,1.61801122]
[1751291872943,0.2512331,107540.0,107530.0,1.69239683]
[1751291875638,0.2512331,107540.0,107530.0,1.72289683]
[1751291876340,0.2512331,107540.0,107530.0,1.75599683]
[1751291876747,0.2512331,107540.0,107530.0,1.39519683]
[1751291876942,0.2512331,107540.0,107530.0,1.75599683]
[1751291877553,0.2512331,107540.0,107530.0,1.39519683]
[1751291878844,0.2512331,107540.0,107530.0,1.75599683]
[1751291879546,0.2512331,107540.0,107530.0,1.77431125]
[1751291880236,0.6120331,107540.0,107530.0,1.066127]
[1751291880441,0.6120331,107540.0,107530.0,1.033027]
[1751291882751,0.92859665,107540.0,107530.0,0.321587]
[1751291883048,0.92859665,107540.0,107530.0,1.032987]
[1751291883250,0.6120331,107540.0,107530.0,1.032987]
[1751291883544,0.94527153,107540.0,107530.0,0.90322919]
[1751291883738,0.62870798,107540.0,107530.0,0.81052916]
[1751291883945,0.94527153,107540.0,107530.0,0.81052916]
[1751291884640,0.94527153,107540.0,107530.0,0.08936242]
[1751291884838,0.94527153,107540.0,107530.0,0.80068242]
[1751291885040,0.94527153,107540.0,107530.0,0.66448242]
[1751291885747,0.94527153,107540.0,107530.0,0.01497292]
[1751291886049,0.94527153,107540.0,107530.0,0.59009292]
[1751291886251,0.94527153,107540.0,107530.0,0.66448242]
[1751291887351,0.94527153,107540.0,107530.0,0.59009292]
[1751291888042,0.94527153,107540.0,107530.0,0.59005292]
[1751291890758,0.94527153,107540.0,107530.0,0.77600322]
[1751291891056,0.94527153,107540.0,107530.0,0.59005292]
[1751291892042,0.94527153,107540.0,107530.0,0.01497292]
[1751291892355,0.94527153,107540.0,107530.0,0.59001292]
[1751291892655,0.94527153,107540.0,107530.0,0.59023591]
[1751291893151,0.94527153,107540.0,107530.0,0.01519591]
[1751291893354,0.94527153,107540.0,107530.0,0.59019591]
[1751291893850,0.62870798,107540.0,107530.0,0.59019591]
[1751291894054,0.94527153,107540.0,107530.0,0.59019591]
[1751291895952,0.1859503,107530.0,107520.0,0.09925143]
[1751291896156,0.95801385,107530.0,107520.0,0.08397563]
[1751291896355,0.95801385,107530.0,107520.0,0.26994323]
[1751291896555,0.95801385,107530.0,107520.0,0.08397563]
[1751291897053,0.92611385,107530.0,107520.0,1.01168323]
[1751291897556,0.92911385,107530.0,107520.0,1.01168323]
[1751291898157,0.6125503,107530.0,107520.0,1.01168323]
[1751291898358,0.2517503,107530.0,107520.0,1.01168323]
[1751291898550,0.2517503,107530.0,107520.0,1.07308323]
[1751291899259,0.2213503,107530.0,107520.0,1.07308323]
[1751291899661,0.2213503,107530.0,107520.0,1.43388323]
[1751291900158,0.2213503,107530.0,107520.0,1.14803464]
[1751291901361,0.89871385,107530.0,107520.0,1.14803464]
[1751291901763,0.5821503,107530.0,107520.0,1.14803464]
[1751291902156,0.2213503,107530.0,107520.0,1.14803464]
[1751291902360,0.5821503,107530.0,107520.0,1.14803464]
[1751291902864,0.2213503,107530.0,107520.0,1.14803464]
[1751291903565,0.5821503,107530.0,107520.0,1.14803464]
[1751291903764,0.6154503,107530.0,107520.0,1.14803464]
[1751291904667,0.2546503,107530.0,107520.0,1.50883464]
[1751291904966,0.1889503,107530.0,107520.0,1.85100869]
[1751291905368,0.003,107530.0,107520.0,1.92539819]
[1751291906569,0.1889503,107530.0,107520.0,1.92539819]
[1751291906868,0.1889503,107530.0,107520.0,1.85100869]
[1751291907059,0.1889503,107530.0,107520.0,1.94370872]
[1751291907470,0.003,107530.0,107520.0,1.94370872]
[1751291907966,0.003,107530.0,107520.0,1.95775342]
[1751291908367,0.003,107530.0,107520.0,1.93933674]
[1751291908570,0.1889503,107530.0,107520.0,1.92529204]
[1751291909669,0.003,107530.0,107520.0,1.92529204]
[1751291909969,0.1889503,107530.0,107520.0,1.92529204]
[1751291910568,0.003,107530.0,107520.0,1.92529204]
[1751291910768,0.1889503,107530.0,107520.0,1.92529204]
[1751291913269,0.003,107530.0,107520.0,1.92529204]
[1751291914470,0.1889503,107530.0,107520.0,1.92529204]
[1751291915269,0.003,107530.0,107520.0,1.92529204]
[1751291915972,0.1889503,107530.0,107520.0,1.92529204]
[1751291916972,0.003,107530.0,107520.0,1.92529204]
[1751291919475,0.3254052,107540.0,107530.0,0.1859503]
[1751291919476,0.1859464,107540.0,107530.0,0.1859503]
[1751291919686,0.1859464,107540.0,107530.0,0.91158247]
[1751291919876,0.1859464,107540.0,107530.0,0.94378247]
[1751291920676,0.1899464,107540.0,107530.0,0.94378247]
[1751291922275,0.1899464,107540.0,107530.0,1.04378247]
[1751291922773,0.1899464,107540.0,107530.0,0.68298247]
[1751291922968,0.1899464,107540.0,107530.0,1.04378247]
[1751291925978,0.1899464,107540.0,107530.0,0.96494233]
[1751291926280,0.2204464,107540.0,107530.0,0.96494233]
[1751291926573,0.2183309,107550.0,107530.0,1.01671544]
[1751291926774,0.29536497,107560.0,107550.0,0.1859158]
[1751291927081,0.34184337,107560.0,107550.0,0.42363921]
[1751291927275,0.37234337,107560.0,107550.0,0.42363921]
[1751291927579,0.40484337,107560.0,107550.0,0.42363921]
[1751291927770,0.26540157,107560.0,107550.0,0.42363921]
[1751291927975,0.01650307,107560.0,107550.0,1.02216262]
[1751291928166,0.2963641,107570.0,107560.0,0.1858985]
[1751291928375,0.2963641,107570.0,107560.0,1.40166532]
[1751291928571,0.2963641,107570.0,107560.0,1.43496532]
[1751291929769,0.064,107570.0,107560.0,1.43496532]
[1751291929974,0.2498812,107570.0,107560.0,1.63712246]
[1751291930779,0.2538812,107570.0,107560.0,1.66842246]
[1751291930974,0.068,107570.0,107560.0,1.66842246]
[1751291931180,0.005,107570.0,107560.0,1.66842246]
[1751291933883,0.1908812,107570.0,107560.0,1.3516185]
[1751291934084,0.1908812,107570.0,107560.0,1.66842246]
[1751291934285,0.2523812,107570.0,107560.0,1.66842246]
[1751291934485,0.2523812,107570.0,107560.0,0.92500246]
[1751291934683,0.2523812,107570.0,107560.0,1.60470246]
[1751291935584,0.2523812,107570.0,107560.0,1.24390246]
[1751291937286,0.2523812,107570.0,107560.0,1.23390246]
[1751291938282,0.56918516,107570.0,107560.0,0.1768985]
[1751291938480,0.96048516,107570.0,107560.0,0.1366]
[1751291938678,0.96048516,107570.0,107560.0,0.8967385]
[1751291939179,0.96048516,107570.0,107560.0,0.3224985]
[1751291939384,0.96048516,107570.0,107560.0,0.8967385]
[1751291939586,0.1859158,107550.0,107540.0,0.24797902]
[1751291939781,0.5467158,107550.0,107540.0,1.00430182]
[1751291939979,0.6383158,107550.0,107540.0,1.00430182]
[1751291940786,0.6383158,107550.0,107540.0,0.43006182]
[1751291940989,0.6383158,107550.0,107540.0,0.95785902]
[1751291941175,0.6383158,107550.0,107540.0,0.95885902]
[1751291941375,0.95711976,107550.0,107540.0,0.95885902]
[1751291942087,0.95711976,107550.0,107540.0,0.15220832]
[1751291942385,0.97403866,107550.0,107540.0,0.001]
[1751291942686,1.33483866,107550.0,107540.0,0.57524]
[1751291945089,1.33483866,107550.0,107540.0,0.001]
[1751291945287,1.33483866,107550.0,107540.0,0.57524]
[1751291946482,1.33483866,107550.0,107540.0,0.001]
[1751291946686,1.0180347,107550.0,107540.0,0.7611331]
[1751291946885,1.0180347,107550.0,107540.0,0.5752]
[1751291947080,1.33483866,107550.0,107540.0,0.5752]
[1751291947589,1.33483866,107550.0,107540.0,0.7611331]
[1751291947791,1.33483866,107550.0,107540.0,0.5752]
[1751291947991,1.33483866,107550.0,107540.0,0.7611331]
[1751291948181,1.33483866,107550.0,107540.0,0.5752]
[1751291949196,1.33483866,107550.0,107540.0,0.7611331]
[1751291949793,1.33483866,107550.0,107540.0,0.5752]
[1751291951600,1.33483866,107550.0,107540.0,0.761133]
[1751291952203,1.33483866,107550.0,107540.0,0.5752]
[1751291956103,1.33483866,107550.0,107540.0,0.761133]
[1751291956603,1.0180347,107550.0,107540.0,0.761133]
[1751291956901,1.33483866,107550.0,107540.0,0.761133]
[1751291958490,1.33483866,107550.0,107540.0,0.5752]
[1751291958804,1.33483866,107550.0,107540.0,0.761133]
[1751291961796,1.0180347,107550.0,107540.0,0.761133]
[1751291962000,1.33483866,107550.0,107540.0,0.761133]
[1751291962704,1.33483866,107550.0,107540.0,0.001]
[1751291964303,1.33483866,107550.0,107540.0,0.1869331]
[1751291964501,1.33483866,107550.0,107540.0,0.001]
[1751291966804,1.33483866,107550.0,107540.0,0.186933]
[1751291967004,1.33483866,107550.0,107540.0,0.001]
[1751291967806,1.30433866,107550.0,107540.0,0.001]
[1751291967995,1.30433866,107550.0,107540.0,0.0335]
[1751291970210,1.30433866,107550.0,107540.0,0.219433]
[1751291970506,1.27423866,107550.0,107540.0,0.219433]
[1751291970705,1.27423866,107550.0,107540.0,0.0962]
[1751291970896,1.27423866,107550.0,107540.0,0.282133]
[1751291972009,1.30683866,107550.0,107540.0,0.282133]
[1751291972208,1.30683866,107550.0,107540.0,0.0962]
[1751291973411,1.30683866,107550.0,107540.0,0.0335]
[1751291974214,1.30683866,107550.0,107540.0,0.0479489]
[1751291975914,1.30683866,107550.0,107540.0,0.233882]
[1751291976407,1.30683866,107550.0,107540.0,0.0479489]
[1751291976812,1.30683866,107550.0,107540.0,0.2338819]
[1751291980318,1.30683866,107550.0,107540.0,0.3691219]
[1751291981516,0.9900347,107550.0,107540.0,0.3691219]
[1751291981716,1.30683866,107550.0,107540.0,0.3691219]
[1751291983819,1.22779381,107550.0,107540.0,0.3691219]
[1751291984412,0.44259381,107550.0,107540.0,0.60688101]
[1751291984614,0.80339381,107550.0,107540.0,0.67138101]
[1751291985924,0.80339381,107550.0,107540.0,0.65693211]
[1751291986311,0.44259381,107550.0,107540.0,0.67138624]
[1751291986521,0.5656347,107550.0,107540.0,0.89469122]
[1751291986722,0.2048347,107550.0,107540.0,0.65693211]
[1751291987022,0.2048347,107550.0,107540.0,1.25549122]
[1751291987714,0.2048347,107550.0,107540.0,1.2699452]
[1751291987919,0.2048347,107550.0,107540.0,1.11133415]
[1751291988522,0.2048347,107550.0,107540.0,1.17125894]
[1751291989323,0.2048347,107550.0,107540.0,0.81045894]
[1751291989626,0.2048347,107550.0,107540.0,0.73608017]
[1751291990523,0.2048347,107550.0,107540.0,1.09688017]
[1751291991722,0.2048347,107550.0,107540.0,0.779973]
[1751291991921,0.2048347,107550.0,107540.0,1.09688017]
[1751291993424,0.2048347,107550.0,107540.0,1.18971055]
[1751291993724,0.0189189,107550.0,107540.0,1.18971055]
[1751291993922,0.3263103,107570.0,107560.0,0.1858985]
[1751291994118,0.3263103,107570.0,107560.0,1.31100567]
[1751291994319,0.3263103,107570.0,107560.0,1.67180567]
[1751291994816,0.3263103,107570.0,107560.0,1.31100567]
[1751291995822,0.3263103,107570.0,107560.0,0.9940985]
[1751291996529,0.3323103,107570.0,107560.0,0.9950985]
[1751291996832,0.6931103,107570.0,107560.0,0.9950985]
[1751291997331,0.7574103,107570.0,107560.0,0.9950985]
[1751291997729,0.7574103,107570.0,107560.0,1.06924849]
[1751291999228,1.07431747,107570.0,107560.0,0.8956185]
[1751291999630,1.07431747,107570.0,107560.0,0.95121676]
[1751292000730,0.7574103,107570.0,107560.0,0.95121676]
[1751292001030,1.07431747,107570.0,107560.0,0.05659826]
[1751292001222,1.10721747,107570.0,107560.0,0.95117666]
[1751292001924,0.7903103,107570.0,107560.0,0.95117666]
[1751292002126,0.7903103,107570.0,107560.0,1.26808383]
[1751292002127,0.7574103,107570.0,107560.0,1.26808383]
[1751292002431,0.3966103,107570.0,107560.0,0.95117666]
[1751292002825,0.7574103,107570.0,107560.0,0.95117666]
[1751292003726,0.3966103,107570.0,107560.0,0.95117666]
[1751292004432,0.7574103,107570.0,107560.0,0.95117666]
[1751292007831,1.07431747,107570.0,107560.0,0.95117666]
[1751292008131,0.7574103,107570.0,107560.0,0.95117666]
[1751292008330,0.3966103,107570.0,107560.0,0.95117666]
[1751292008527,0.1928925,107570.0,107560.0,0.92021261]
[1751292008834,0.1928925,107570.0,107560.0,1.71249556]
[1751292009333,0.007,107570.0,107560.0,1.81249556]
[1751292009527,0.1928812,107570.0,107560.0,1.81249556]
[1751292009722,0.007,107570.0,107560.0,1.81249556]
[1751292009926,0.007,107570.0,107560.0,1.83117595]
[1751292010435,0.1928812,107570.0,107560.0,1.83117595]
[1751292011333,0.007,107570.0,107560.0,1.83117595]
[1751292011532,0.1928812,107570.0,107560.0,1.83117595]
[1751292013830,0.055495,107580.0,107560.0,2.44412072]
[1751292014036,0.03341412,107580.0,107570.0,1.05898837]
[1751292014236,0.03341412,107580.0,107570.0,1.13310248]
[1751292014623,0.03341412,107580.0,107570.0,1.05898837]
[1751292014829,0.03341412,107580.0,107570.0,1.15181875]
[1751292015438,2e-08,107580.0,107570.0,1.58773875]
[1751292015625,0.04174156,107600.0,107590.0,0.1858467]
[1751292015939,0.3249398,107620.0,107610.0,0.1858122]
[1751292016124,0.0926946,107620.0,107610.0,1.57159937]
[1751292016330,0.0926946,107620.0,107610.0,1.99769937]
[1751292016530,0.0926946,107620.0,107610.0,2.09769937]
[1751292017032,0.2784895,107620.0,107610.0,2.15327913]
[1751292017630,0.2784895,107620.0,107610.0,1.43167913]
[1751292017936,0.3722895,107620.0,107610.0,0.96800651]
[1751292018138,1.04999667,107620.0,107610.0,0.8938522]
[1751292018340,1.04999667,107620.0,107610.0,0.94933265]
[1751292018530,0.7330895,107620.0,107610.0,0.94933265]
[1751292020641,0.6077121,107610.0,107600.0,0.05543827]
[1751292020944,0.92461927,107610.0,107600.0,0.62843827]
[1751292021635,0.92461927,107610.0,107600.0,0.05543827]
[1751292021834,0.92461927,107610.0,107600.0,0.62843827]
[1751292022030,0.92461927,107610.0,107600.0,0.573]
[1751292022225,0.1858295,107600.0,107590.0,0.97148]
[1751292022432,0.96073667,107600.0,107590.0,1.54444]
[1751292022632,0.6438295,107600.0,107590.0,1.7302867]
[1751292022834,0.6438295,107600.0,107590.0,1.54444]
[1751292023034,0.96073667,107600.0,107590.0,1.54444]
[1751292023739,0.96473667,107600.0,107590.0,1.54544]
[1751292025541,0.6478295,107600.0,107590.0,1.54544]
[1751292025745,0.96473667,107600.0,107590.0,1.54544]
[1751292026836,0.96473667,107600.0,107590.0,1.7312867]
[1751292027048,0.96473667,107600.0,107590.0,1.54544]
[1751292029042,1.28164384,107600.0,107590.0,0.13592]
[1751292029342,0.96473667,107600.0,107590.0,0.70888]
[1751292030236,1.46473667,107600.0,107590.0,0.70888]
[1751292030638,0.185864,107580.0,107570.0,0.07071003]
[1751292030845,0.86357117,107580.0,107570.0,0.7632749]
[1751292031044,0.95747117,107580.0,107570.0,0.9491562]
[1751292031539,0.77160717,107580.0,107570.0,0.73980563]
[1751292031750,0.95747117,107580.0,107570.0,0.25370524]
[1751292032045,1.31827117,107580.0,107570.0,0.12435713]
[1751292032946,1.31827117,107580.0,107570.0,0.69727713]
[1751292033138,1.31827117,107580.0,107570.0,0.12435713]
[1751292033338,1.50519117,107580.0,107570.0,0.12635713]
[1751292033743,1.50519117,107580.0,107570.0,0.10797075]
[1751292034046,2.07811117,107580.0,107570.0,0.10797075]
[1751292034240,2.07811117,107580.0,107570.0,0.03396563]
[1751292034440,2.57811117,107580.0,107570.0,0.10797829]
[1751292034942,2.57911117,107580.0,107570.0,0.10697829]
[1751292035845,2.57911117,107580.0,107570.0,0.03296563]
[1751292036144,2.00619117,107580.0,107570.0,0.08848093]
[1751292036745,2.00719117,107580.0,107570.0,0.08848093]
[1751292037046,2.00719117,107580.0,107570.0,0.04583913]
[1751292037247,0.1858812,107570.0,107560.0,0.07494233]
[1751292037447,0.92768837,107570.0,107560.0,0.07494233]
[1751292038943,0.1858985,107560.0,107550.0,0.0463915]
[1751292039143,0.1859158,107550.0,107540.0,1.02308121]
[1751292039346,0.6108158,107550.0,107540.0,0.8937331]
[1751292039545,0.6108158,107550.0,107540.0,1.21064027]
[1751292039750,0.5798158,107550.0,107540.0,1.27494027]
[1751292039942,0.5798158,107550.0,107540.0,0.9580331]
[1751292040440,0.5808158,107550.0,107540.0,0.9620331]
[1751292040640,0.6118158,107550.0,107540.0,0.9620331]
[1751292041454,0.6118158,107550.0,107540.0,1.03614969]
[1751292042055,0.6118158,107550.0,107540.0,1.35305686]
[1751292042443,0.5808158,107550.0,107540.0,1.35305686]
[1751292043042,0.1869158,107550.0,107540.0,1.35305686]
[1751292043247,0.1869158,107550.0,107540.0,1.71385686]
[1751292044056,0.1869158,107550.0,107540.0,1.81385686]
[1751292044861,0.1869158,107550.0,107540.0,1.99982486]
[1751292045547,0.1869158,107550.0,107540.0,1.49694969]
[1751292046046,0.1869158,107550.0,107540.0,1.81385686]
[1751292046449,0.1869158,107550.0,107540.0,1.49694969]
[1751292046650,0.1869158,107550.0,107540.0,0.82394969]
[1751292046848,0.86462297,107550.0,107540.0,0.85021659]
[1751292047048,0.86462297,107550.0,107540.0,1.03614969]
[1751292047355,0.5791158,107550.0,107540.0,1.03614969]
[1751292048949,0.5791158,107550.0,107540.0,1.11007367]
[1751292049156,0.5791158,107550.0,107540.0,1.14054301]
[1751292050247,0.5791158,107550.0,107540.0,1.14060006]
[1751292051354,0.1869158,107550.0,107540.0,1.81830723]
[1751292051556,0.1869158,107550.0,107540.0,1.83670427]
[1751292052848,0.1869158,107550.0,107540.0,1.5197971]
[1751292053060,0.1869158,107550.0,107540.0,1.47590427]
[1751292054558,0.13111765,107550.0,107540.0,1.47590427]
[1751292054959,0.1869158,107550.0,107540.0,1.47590427]
[1751292056158,0.1869158,107550.0,107540.0,1.3835262]
[1751292056555,0.1869158,107550.0,107540.0,1.51287431]
[1751292058769,0.5477158,107550.0,107540.0,0.30219404]
[1751292059070,0.96152297,107550.0,107540.0,0.48812724]
[1751292059265,0.96152297,107550.0,107540.0,1.16346724]
[1751292059470,0.6446158,107550.0,107540.0,0.97753404]
[1751292060467,0.6446158,107550.0,107540.0,1.16346724]
[1751292060673,0.6446158,107550.0,107540.0,0.97753404]
[1751292060874,0.7746158,107550.0,107540.0,0.94573404]
[1751292061563,0.7746158,107550.0,107540.0,0.98948772]
[1751292061763,0.7746158,107550.0,107540.0,0.86013961]
[1751292061959,0.7746158,107550.0,107540.0,1.04607281]
[1751292062360,0.6777158,107550.0,107540.0,1.36297998]
[1751292062573,0.3169158,107550.0,107540.0,1.39367998]
[1751292062872,0.3169158,107550.0,107540.0,1.42667998]
[1751292063275,0.3169158,107550.0,107540.0,1.10977281]
[1751292063468,0.3169158,107550.0,107540.0,1.42667998]
[1751292063668,0.6777158,107550.0,107540.0,1.42667998]
[1751292063869,0.3169158,107550.0,107540.0,1.42667998]
[1751292064068,0.3169158,107550.0,107540.0,1.78747998]
[1751292064272,0.1869158,107550.0,107540.0,1.88747998]
[1751292064471,0.2969158,107550.0,107540.0,1.81325696]
[1751292064876,0.2969158,107550.0,107540.0,1.88756292]
[1751292065267,0.001,107550.0,107540.0,1.81325696]
[1751292065477,0.3169159,107550.0,107540.0,1.8875766]
[1751292065671,0.131,107550.0,107540.0,1.8875766]
[1751292065972,0.001,107550.0,107540.0,1.81325696]
[1751292066171,0.001,107550.0,107540.0,1.90603573]
[1751292067475,0.1869159,107550.0,107540.0,1.90603573]
[1751292067779,0.3069159,107550.0,107540.0,1.81325696]
[1751292068580,0.3069159,107550.0,107540.0,1.88758549]
[1751292069076,0.121,107550.0,107540.0,1.88758549]
[1751292069278,0.121,107550.0,107540.0,1.81325696]
[1751292069680,0.121,107550.0,107540.0,1.90603573]
[1751292070082,0.3069159,107550.0,107540.0,1.81325696]
[1751292070977,0.3069159,107550.0,107540.0,1.10541696]
[1751292071282,0.3069159,107550.0,107540.0,1.78789698]
[1751292071781,0.3069159,107550.0,107540.0,1.71357696]
[1751292072581,0.3069159,107550.0,107540.0,1.48944856]
[1751292072881,0.3069159,107550.0,107540.0,1.80635573]
[1751292073580,0.3069159,107550.0,107540.0,1.90635573]
[1751292074575,0.121,107550.0,107540.0,1.90635573]
[1751292074781,0.3069159,107550.0,107540.0,1.90635573]
[1751292079490,0.121,107550.0,107540.0,1.90635573]
[1751292080282,0.121,107550.0,107540.0,1.81357696]
[1751292080788,0.2323894,107560.0,107550.0,0.50282307]
[1751292080980,0.3523894,107560.0,107550.0,1.05188807]
[1751292082082,0.3533894,107560.0,107550.0,1.05388807]
[1751292082588,0.03078024,107560.0,107550.0,1.05388807]
[1751292082789,0.03078024,107560.0,107550.0,2.49354724]
[1751292083097,0.001,107560.0,107550.0,2.50912318]
[1751292086889,0.001,107560.0,107550.0,2.82603035]
[1751292087688,0.24894262,107590.0,107580.0,0.1858642]
[1751292087896,0.43094262,107590.0,107580.0,1.21057137]
[1751292089491,0.43594262,107590.0,107580.0,1.21157137]
[1751292089794,0.43594262,107590.0,107580.0,0.8946642]
[1751292092089,0.43594262,107590.0,107580.0,1.21157137]
[1751292092289,0.43594262,107590.0,107580.0,1.22097073]
[1751292092695,0.4193175,107590.0,107580.0,1.23637773]
[1751292094997,0.3728548,107590.0,107580.0,1.23637773]
[1751292095296,0.3728548,107590.0,107580.0,1.59717773]
[1751292096188,0.3728548,107590.0,107580.0,1.23637773]
[1751292096392,0.3688548,107590.0,107580.0,0.91947056]
[1751292096593,0.3688548,107590.0,107580.0,1.23637773]
[1751292098597,0.3688548,107590.0,107580.0,0.91947056]
[1751292098797,0.3688548,107590.0,107580.0,1.23637773]
[1751292099399,0.3688548,107590.0,107580.0,0.91947056]
[1751292099707,0.3688548,107590.0,107580.0,1.23637773]
[1751292100198,0.7296548,107590.0,107580.0,0.52857773]
[1751292100598,0.7296548,107590.0,107580.0,0.21167056]
[1751292100788,1.04656197,107590.0,107580.0,0.723967]
[1751292100986,0.92656197,107590.0,107580.0,0.723967]
[1751292101186,0.92656197,107590.0,107580.0,0.016407]
[1751292101395,0.92656197,107590.0,107580.0,0.723967]
[1751292101697,0.92656197,107590.0,107580.0,0.151167]
[1751292101888,0.94312403,107590.0,107580.0,0.151167]
[1751292102198,0.94312403,107590.0,107580.0,0.574267]
[1751292102596,0.1858815,107570.0,107560.0,0.5714197]
[1751292102901,0.86358867,107570.0,107560.0,1.2789797]
[1751292103102,0.5466815,107570.0,107560.0,1.2789797]
[1751292104396,0.1858815,107570.0,107560.0,1.2789797]
[1751292104698,0.1858815,107570.0,107560.0,1.59588575]
[1751292105002,0.1868815,107570.0,107560.0,1.59988575]
[1751292105203,0.2515815,107570.0,107560.0,1.52572715]
[1751292105500,0.1868815,107570.0,107560.0,1.62212715]
[1751292105708,0.1868815,107570.0,107560.0,1.4188268]
[1751292105893,0.1868815,107570.0,107560.0,1.7796268]
[1751292107208,0.1868815,107570.0,107560.0,1.76110701]
[1751292108201,0.1868815,107570.0,107560.0,1.68692715]
[1751292108600,0.1868815,107570.0,107560.0,1.76110701]
[1751292110306,0.1868815,107570.0,107560.0,1.68692715]
[1751292110604,0.1868815,107570.0,107560.0,1.76116294]
[1751292111197,0.1868815,107570.0,107560.0,1.68692715]
[1751292112303,0.1868815,107570.0,107560.0,1.7796268]
[1751292112705,0.1868815,107570.0,107560.0,1.68692715]
[1751292113506,0.1868815,107570.0,107560.0,1.7611861]
[1751292115308,0.1868815,107570.0,107560.0,1.4003861]
[1751292115508,0.1868815,107570.0,107560.0,1.7611861]
[1751292115711,0.1868815,107570.0,107560.0,1.08351893]
[1751292115915,0.1868815,107570.0,107560.0,1.4004261]
[1751292121814,0.86458867,107570.0,107560.0,0.59220118]
[1751292122014,0.92858867,107570.0,107560.0,0.77809998]
[1751292122412,0.6116815,107570.0,107560.0,0.77809998]
[1751292122612,0.92858867,107570.0,107560.0,0.77809998]
[1751292123003,0.92758867,107570.0,107560.0,0.77409998]
[1751292123208,0.92958867,107570.0,107560.0,0.77509998]
[1751292123905,0.6126815,107570.0,107560.0,0.77509998]
[1751292124202,0.92958867,107570.0,107560.0,0.77509998]
[1751292125114,0.92958867,107570.0,107560.0,0.80589998]
[1751292125510,0.6126815,107570.0,107560.0,0.80589998]
[1751292125711,0.92958867,107570.0,107560.0,0.80589998]
[1751292127619,0.92958867,107570.0,107560.0,0.83719998]
[1751292127917,0.6126815,107570.0,107560.0,0.86799998]
[1751292129115,0.1878815,107570.0,107560.0,1.18490715]
[1751292129316,0.5486815,107570.0,107560.0,1.18490715]
[1751292130013,0.50478867,107570.0,107560.0,0.29515998]
[1751292130212,0.1878815,107570.0,107560.0,1.07705893]
[1751292131017,0.5486815,107570.0,107560.0,1.07705893]
[1751292132318,0.89758867,107570.0,107560.0,1.04625893]
[1751292132518,0.96028867,107570.0,107560.0,1.01545893]
[1751292132718,0.96028867,107570.0,107560.0,0.09062013]
[1751292132928,0.96028867,107570.0,107560.0,0.72400118]
[1751292133221,0.97719495,107570.0,107560.0,0.72400118]
[1751292133922,0.97719495,107570.0,107560.0,0.90989988]
[1751292134420,0.97719495,107570.0,107560.0,0.72400118]
[1751292134729,0.97719495,107570.0,107560.0,0.90989998]
[1751292136823,0.97719495,107570.0,107560.0,0.98415893]
[1751292137636,0.91449495,107570.0,107560.0,0.98415893]
[1751292137938,0.56558778,107570.0,107560.0,1.04605893]
[1751292139437,0.20478778,107570.0,107560.0,1.3629661]
[1751292139636,0.1878815,107570.0,107560.0,1.64950715]
[1751292139934,0.1878815,107570.0,107560.0,1.7237661]
[1751292141833,0.1878815,107570.0,107560.0,1.64950715]
[1751292143837,0.1878815,107570.0,107560.0,1.33259998]
[1751292144035,0.1878815,107570.0,107560.0,1.64950715]
[1751292144637,0.1878815,107570.0,107560.0,1.28870715]
[1751292146039,0.1878815,107570.0,107560.0,0.97179998]
[1751292147145,0.57179064,107570.0,107560.0,1.30323091]
[1751292147345,0.88869781,107570.0,107560.0,0.98628374]
[1751292148243,0.86558867,107570.0,107560.0,0.73848494]
[1751292148542,0.9457226,107570.0,107560.0,0.73848494]
[1751292149239,0.9457226,107570.0,107560.0,0.92438364]
[1751292149434,0.96883425,107570.0,107560.0,0.73848494]
[1751292150846,0.96883425,107570.0,107560.0,0.73844494]
[1751292151041,0.96883425,107570.0,107560.0,0.60368494]
[1751292154244,0.90583425,107570.0,107560.0,0.60368494]
[1751292154439,0.90583425,107570.0,107560.0,0.66538494]
[1751292154838,0.8827226,107570.0,107560.0,0.66538494]
[1751292155041,0.90580032,107570.0,107560.0,0.66538494]
[1751292156351,0.90580032,107570.0,107560.0,0.85128374]
[1751292157544,0.22809315,107570.0,107560.0,1.16819091]
[1751292157750,0.20501543,107570.0,107560.0,1.16819091]
[1751292158250,0.1878815,107570.0,107560.0,1.52899091]